fUST/lending_fUST_20250727
["ID","MTS","AMOUNT","RATE_DAILY","PERIOD"]
[375223074,1753590642344,-460.0,0.0002,2]
[375223075,1753590642353,-1565.89,0.0002,2]
[375223076,1753590642362,-1224.01,0.0002,2]
[375223077,1753590642371,-560.96,0.0002,2]
[375223078,1753590642380,-460.0,0.0002,2]
[375223079,1753590642389,-460.0,0.0002,2]
[375223080,1753590642398,-332.18629561,0.0002,2]
[375223081,1753590642407,-460.0,0.0002,2]
[375223082,1753590642415,-465.45,0.0002,2]
[375223083,1753590642425,-698.94,0.0002,2]
[375223084,1753590642434,-549.98,0.0002,2]
[375223085,1753590642443,-460.0,0.0002,2]
[375223086,1753590642453,-460.0,0.0002,2]
[375223087,1753590642462,-460.0,0.0002,2]
[375223088,1753590642472,-460.0,0.0002,2]
[375223089,1753590642481,-460.0,0.0002,2]
[375223101,1753590642587,-460.0,0.0002,2]
[375223103,1753590642599,-721.36,0.0002,2]
[375223105,1753590642608,-626.61,0.0002,2]
[375223107,1753590642617,-460.0,0.0002,2]
[375223109,1753590642627,-483.88,0.0002,2]
[375223111,1753590642636,-1798.5,0.0002,2]
[375223113,1753590642645,-460.0,0.0002,2]
[375223115,1753590642655,-460.0,0.0002,2]
[375223117,1753590642664,-330.58,0.0002,2]
[375223119,1753590642674,-460.0,0.0002,2]
[375223121,1753590642685,-460.0,0.0002,2]
[375223123,1753590642694,-554.37,0.0002,2]
[375223125,1753590642703,-460.0,0.0002,2]
[375223127,1753590642713,-460.0,0.0002,2]
[375223129,1753590642722,-467.44,0.0002,2]
[375223131,1753590642731,-460.0,0.0002,2]
[375223133,1753590642741,-612.19,0.0002,2]
[375223135,1753590642750,-685.63,0.0002,2]
[375223137,1753590642759,-2363.51,0.0002,2]
[375223139,1753590642768,-2434.89,0.0002,2]
[375223141,1753590642777,-1001.59,0.0002,2]
[375223143,1753590642786,-460.0,0.0002,2]
[375223145,1753590642796,-672.54,0.0002,2]
[375223147,1753590642810,-460.0,0.0002,2]
[375223149,1753590642819,-460.0,0.0002,2]
[375223151,1753590642828,-460.0,0.0002,2]
[375223153,1753590642837,-942.1,0.0002,2]
[375223155,1753590642846,-1709.45,0.0002,2]
[375223157,1753590642856,-460.0,0.0002,2]
[375223159,1753590642865,-586.49,0.0002,2]
[375223161,1753590642875,-460.0,0.0002,2]
[375223163,1753590642886,-721.82,0.0002,2]
[375223165,1753590642896,-460.0,0.0002,2]
[375223167,1753590642906,-606.27,0.0002,2]
[375223169,1753590642915,-317.07667341,0.0002,2]
[375223171,1753590642925,-2096.66,0.0002,2]
[375223173,1753590642934,-962.53,0.0002,2]
[375223175,1753590642944,-522.21,0.0002,2]
[375223177,1753590642953,-1170.19,0.0002,2]
[375223179,1753590642963,-460.74247809,0.0002,2]
[375223182,1753590642973,-461.59835794,0.0002,2]
[375223184,1753590642981,-460.0,0.0002,2]
[375223186,1753590642991,-633.68,0.0002,2]
[375223188,1753590643000,-460.0,0.0002,2]
[375223190,1753590643009,-496.03,0.0002,2]
[375223192,1753590643019,-460.0,0.0002,2]
[375223194,1753590643028,-1451.4,0.0002,2]
[375223196,1753590643037,-460.0,0.0002,2]
[375223198,1753590643046,-460.0,0.0002,2]
[375223200,1753590643058,-485.35,0.0002,2]
[375223202,1753590643067,-460.0,0.0002,2]
[375223204,1753590643077,-460.0,0.0002,2]
[375223207,1753590643086,-461.31,0.0002,2]
[375223210,1753590643095,-1490.8,0.0002,2]
[375223212,1753590643105,-758.3,0.0002,2]
[375223214,1753590643115,-460.0,0.0002,2]
[375223216,1753590643126,-731.53,0.0002,2]
[375223218,1753590643135,-551.27,0.0002,2]
[375223220,1753590643144,-460.0,0.0002,2]
[375223222,1753590643154,-399.14575647,0.0002,2]
[375223224,1753590643163,-460.0,0.0002,2]
[375223226,1753590643173,-460.0,0.0002,2]
[375223228,1753590643183,-683.71,0.0002,2]
[375223230,1753590643197,-460.0,0.0002,2]
[375223232,1753590643207,-733.24,0.0002,2]
[375223234,1753590643217,-460.0,0.0002,2]
[375223236,1753590643227,-634.01,0.0002,2]
[375223238,1753590643236,-479.56404734,0.0002,2]
[375223240,1753590643245,-685.87,0.0002,2]
[375223242,1753590643254,-3510.95,0.0002,2]
[375223244,1753590643264,-460.0,0.0002,2]
[375223246,1753590643274,-460.0,0.0002,2]
[375223248,1753590643283,-460.0,0.0002,2]
[375223250,1753590643293,-752.7,0.0002,2]
[375223253,1753590643302,-460.0,0.0002,2]
[375223254,1753590643312,-621.07,0.0002,2]
[375223257,1753590643322,-1141.83,0.0002,2]
[375223259,1753590643331,-1979.15,0.0002,2]
[375223261,1753590643341,-483.78,0.0002,2]
[375223263,1753590643351,-1000.0,0.00020021,2]
[375223264,1753590643362,-1000.0,0.00020021,2]
[375223267,1753590643372,-326.36,0.00020099,2]
[375223269,1753590643383,-4553.15645207,0.00020107,2]
[375223271,1753590643393,-206.89654344,0.00020134,2]
[375223273,1753590643403,-216.01841554,0.00020165,2]
[375223275,1753590643412,-526.50274803,0.00020165,2]
[375223276,1753590643422,-214.84090509,0.00020165,2]
[375223278,1753590643431,-12632.25855046,0.00020165,2]
[375223280,1753590643440,-231.30466539,0.00020167,2]
[375223282,1753590643449,-160.0,0.00020167,2]
[375223284,1753590643458,-477.07289566,0.00020167,2]
[375223287,1753590643469,-160.0,0.00020167,2]
[375223289,1753590643479,-160.0,0.00020167,2]
[375223291,1753590643488,-840.75038169,0.00020167,2]
[375223293,1753590643498,-160.0,0.00020167,2]
[375223295,1753590643507,-160.0,0.00020167,2]
[375223297,1753590643517,-160.0,0.00020167,2]
[375223299,1753590643528,-194.395888,0.00020187,2]
[375223301,1753590643538,-2290.20731312,0.00020249,2]
[375223302,1753590643547,-1500.0,0.00020268,2]
[375223304,1753590643557,-1500.0,0.00020268,2]
[375223306,1753590643566,-460.0,0.00020273,2]
[375223309,1753590643576,-3966.99,0.00020273,2]
[375223310,1753590643585,-563.98,0.00020273,2]
[375223312,1753590643595,-460.0,0.00020273,2]
[375223314,1753590643604,-2055.59,0.00020273,2]
[375223316,1753590643613,-460.0,0.00020273,2]
[375223319,1753590643623,-460.0,0.00020273,2]
[375223321,1753590643633,-541.62,0.00020273,2]
[375223323,1753590643642,-460.0,0.00020273,2]
[375223324,1753590643652,-531.12,0.00020273,2]
[375223327,1753590643662,-553.78,0.00020273,2]
[375223328,1753590643671,-164.22329062,0.00020273,2]
[375223330,1753590643681,-460.0,0.00020273,2]
[375223332,1753590643690,-460.0,0.00020273,2]
[375223334,1753590643700,-460.0,0.00020273,2]
[375223337,1753590643709,-460.0,0.00020273,2]
[375223338,1753590643718,-567.33,0.00020273,2]
[375223341,1753590643728,-813.09,0.00020273,2]
[375223343,1753590643738,-460.0,0.00020273,2]
[375223345,1753590643747,-460.0,0.00020273,2]
[375223346,1753590643757,-799.06,0.00020273,2]
[375223348,1753590643766,-744.59,0.00020273,2]
[375223350,1753590643775,-221.0,0.00020273,2]
[375223353,1753590643786,-460.0,0.00020273,2]
[375223355,1753590643795,-460.0,0.00020273,2]
[375223356,1753590643806,-460.0,0.00020273,2]
[375223359,1753590643815,-1565.89,0.00020273,2]
[375223361,1753590643824,-1224.01,0.00020273,2]
[375223363,1753590643834,-560.96,0.00020273,2]
[375223364,1753590643843,-460.0,0.00020273,2]
[375223366,1753590643853,-460.0,0.00020273,2]
[375223369,1753590643862,-460.0,0.00020273,2]
[375223371,1753590643872,-465.45,0.00020273,2]
[375223372,1753590643881,-698.94,0.00020273,2]
[375223374,1753590643891,-549.98,0.00020273,2]
[375223376,1753590643902,-460.0,0.00020273,2]
[375223378,1753590643911,-460.0,0.00020273,2]
[375223380,1753590643921,-460.0,0.00020273,2]
[375223382,1753590643930,-460.0,0.00020273,2]
[375223384,1753590643940,-460.0,0.00020273,2]
[375223386,1753590643949,-460.0,0.00020273,2]
[375223388,1753590643959,-721.36,0.00020273,2]
[375223390,1753590643968,-626.61,0.00020273,2]
[375223392,1753590643977,-397.3929076,0.00020273,2]
[375223394,1753590643985,-483.88,0.00020273,2]
[375223396,1753590643995,-1798.5,0.00020273,2]
[375223398,1753590644004,-460.0,0.00020273,2]
[375223400,1753590644013,-576.18931405,0.00020273,2]
[375223402,1753590644023,-460.0,0.00020273,2]
[375223405,1753590644032,-460.0,0.00020273,2]
[375223407,1753590644041,-554.37,0.00020273,2]
[375223408,1753590644050,-164.54,0.00020273,2]
[375223410,1753590644061,-460.0,0.00020273,2]
[375223413,1753590644070,-467.44,0.00020273,2]
[375223415,1753590644080,-460.0,0.00020273,2]
[375223416,1753590644089,-612.19,0.00020273,2]
[375223419,1753590644098,-685.63,0.00020273,2]
[375223421,1753590644109,-2363.51,0.00020273,2]
[375223423,1753590644118,-2434.89,0.00020273,2]
[375223424,1753590644128,-1001.59,0.00020273,2]
[375223426,1753590644137,-460.0,0.00020273,2]
[375223428,1753590644148,-672.54,0.00020273,2]
[375223430,1753590644158,-460.0,0.00020273,2]
[375223432,1753590644168,-460.0,0.00020273,2]
[375223435,1753590644177,-460.0,0.00020273,2]
[375223437,1753590644190,-942.1,0.00020273,2]
[375223438,1753590644200,-1709.45,0.00020273,2]
[375223441,1753590644210,-460.0,0.00020273,2]
[375223443,1753590644220,-586.49,0.00020273,2]
[375223445,1753590644231,-460.0,0.00020273,2]
[375223446,1753590644242,-721.82,0.00020273,2]
[375223448,1753590644252,-606.27,0.00020273,2]
[375223451,1753590644262,-2096.66,0.00020273,2]
[375223452,1753590644273,-962.53,0.00020273,2]
[375223455,1753590644282,-522.21,0.00020273,2]
[375223457,1753590644292,-1170.19,0.00020273,2]
[375223459,1753590644303,-460.0,0.00020273,2]
[375223460,1753590644313,-633.68,0.00020273,2]
[375223463,1753590644322,-460.0,0.00020273,2]
[375223465,1753590644332,-496.03,0.00020273,2]
[375223466,1753590644341,-326.26034485,0.00020273,2]
[375223469,1753590644351,-1451.4,0.00020273,2]
[375223471,1753590644360,-394.4303031,0.00020273,2]
[375223473,1753590644369,-485.35,0.00020273,2]
[375223475,1753590644379,-232.26438813,0.00020273,2]
[375223476,1753590644388,-460.0,0.00020273,2]
[375223478,1753590644397,-461.31,0.00020273,2]
[375223480,1753590644406,-1490.8,0.00020273,2]
[375223482,1753590644418,-758.3,0.00020273,2]
[375223485,1753590644429,-731.53,0.00020273,2]
[375223487,1753590644438,-460.0,0.00020273,2]
[375223489,1753590644447,-551.27,0.00020273,2]
[375223490,1753590644456,-460.0,0.00020273,2]
[375223492,1753590644465,-460.0,0.00020273,2]
[375223494,1753590644475,-683.71,0.00020273,2]
[375223496,1753590644484,-733.24,0.00020273,2]
[375223498,1753590644493,-460.0,0.00020273,2]
[375223500,1753590644502,-460.0,0.00020273,2]
[375223503,1753590644513,-634.01,0.00020273,2]
[375223505,1753590644522,-685.87,0.00020273,2]
[375223507,1753590644531,-3510.95,0.00020273,2]
[375223509,1753590644541,-375.99873198,0.00020273,2]
[375223510,1753590644550,-460.0,0.00020273,2]
[375223512,1753590644561,-460.0,0.00020273,2]
[375223514,1753590644570,-460.0,0.00020273,2]
[375223516,1753590644580,-752.7,0.00020273,2]
[375223518,1753590644590,-621.07,0.00020273,2]
[375223521,1753590644600,-1141.83,0.00020273,2]
[375223522,1753590644609,-1979.15,0.00020273,2]
[375223524,1753590644619,-483.78,0.00020273,2]
[375223527,1753590644628,-563.0,0.00020274,2]
[375223528,1753590644637,-200.14202723,0.00020274,2]
[375223531,1753590644646,-210.25507561,0.00020274,2]
[375223532,1753590644655,-494.0,0.00020274,2]
[375223534,1753590644665,-379.43529069,0.00020274,2]
[375223537,1753590644674,-120.76297711,0.00020274,2]
[375223540,1753590644694,-30.23702289,0.00020274,2]
[375223542,1753590644703,-163.35391302,0.00020274,2]
[375223544,1753590644712,-151.0,0.00020274,2]
[375223546,1753590644721,-4553.15645207,0.00020314,3]
[375223547,1753590644730,-503.7701983,0.00020321,2]
[375223549,1753590644739,-320.0,0.00020427,2]
[375223552,1753590644749,-25000.0,0.00020468,2]
[375223553,1753590644758,-151.0,0.00020468,2]
[375223555,1753590644767,-151.0,0.00020468,2]
[375223558,1753590644776,-151.0,0.00020468,2]
[375223560,1753590644786,-151.0,0.00020468,2]
[375223561,1753590644795,-151.0,0.00020468,2]
[375223563,1753590644805,-151.0,0.00020468,2]
[375223565,1753590644816,-151.0,0.00020468,2]
[375223567,1753590644825,-151.0,0.00020468,2]
[375223569,1753590644835,-151.0,0.00020468,2]
[375223571,1753590644844,-151.0,0.00020468,2]
[375223573,1753590644853,-691.50085884,0.00020468,2]
[375223585,1753590644953,-151.0,0.00020468,2]
[375223587,1753590644963,-151.0,0.00020468,2]
[375223589,1753590644972,-151.0,0.00020468,2]
[375223591,1753590644981,-151.0,0.00020468,2]
[375223593,1753590644990,-151.0,0.00020468,2]
[375223595,1753590645000,-151.0,0.00020468,2]
[375223597,1753590645009,-151.0,0.00020468,2]
[375223600,1753590645019,-151.0,0.00020468,2]
[375223602,1753590645028,-151.0,0.00020468,2]
[375223604,1753590645037,-151.0,0.00020468,2]
[375223606,1753590645047,-585.0,0.00020472,2]
[375223607,1753590645056,-420.0,0.00020472,2]
[375223610,1753590645066,-151.0,0.000205,3]
[375223612,1753590645075,-214.84090509,0.00020521,3]
[375223613,1753590645084,-12632.25855046,0.00020521,3]
[375223615,1753590645093,-4553.15645207,0.00020521,3]
[375223617,1753590645103,-1060.38,0.00020538,3]
[375223619,1753590645113,-441.82,0.00020538,3]
[375223622,1753590645123,-460.0,0.00020547,2]
[375223624,1753590645131,-618.84574671,0.00020547,2]
[375223632,1753590645207,-3348.14425329,0.00020547,2]
[375223635,1753590645217,-563.98,0.00020547,2]
[375223637,1753590645226,-460.0,0.00020547,2]
[375223639,1753590645237,-2055.59,0.00020547,2]
[375223641,1753590645246,-460.0,0.00020547,2]
[375223643,1753590645255,-307.66200667,0.00020547,2]
[375223645,1753590645268,-152.33799333,0.00020547,2]
[375223647,1753590645277,-531.12,0.00020547,2]
[375223649,1753590645287,-460.0,0.00020547,2]
[375223651,1753590645296,-553.78,0.00020547,2]
[375223653,1753590645306,-539.16,0.00020547,2]
[375223655,1753590645315,-460.0,0.00020547,2]
[375223657,1753590645325,-460.0,0.00020547,2]
[375223659,1753590645334,-460.0,0.00020547,2]
[375223661,1753590645344,-567.33,0.00020547,2]
[375223663,1753590645353,-813.09,0.00020547,2]
[375223665,1753590645362,-460.0,0.00020547,2]
[375223667,1753590645371,-460.0,0.00020547,2]
[375223669,1753590645380,-799.06,0.00020547,2]
[375223671,1753590645389,-744.59,0.00020547,2]
[375223673,1753590645398,-460.0,0.00020547,2]
[375223675,1753590645408,-460.0,0.00020547,2]
[375223677,1753590645417,-460.0,0.00020547,2]
[375223679,1753590645427,-1565.89,0.00020547,2]
[375223681,1753590645436,-1117.64200667,0.00020547,2]
[375223683,1753590645447,-106.36799333,0.00020547,2]
[375223685,1753590645456,-560.96,0.00020547,2]
[375223687,1753590645465,-460.0,0.00020547,2]
[375223689,1753590645475,-460.0,0.00020547,2]
[375223691,1753590645484,-460.0,0.00020547,2]
[375223693,1753590645493,-465.45,0.00020547,2]
[375223695,1753590645502,-698.94,0.00020547,2]
[375223697,1753590645511,-549.98,0.00020547,2]
[375223699,1753590645520,-460.0,0.00020547,2]
[375223701,1753590645529,-460.0,0.00020547,2]
[375223703,1753590645538,-460.0,0.00020547,2]
[375223705,1753590645547,-460.0,0.00020547,2]
[375223707,1753590645556,-460.0,0.00020547,2]
[375223709,1753590645565,-460.0,0.00020547,2]
[375223711,1753590645574,-721.36,0.00020547,2]
[375223713,1753590645583,-626.61,0.00020547,2]
[375223715,1753590645593,-483.88,0.00020547,2]
[375223717,1753590645603,-1798.5,0.00020547,2]
[375223719,1753590645612,-284.39464865,0.00020547,2]
[375223721,1753590645624,-175.60535135,0.00020547,2]
[375223723,1753590645634,-460.0,0.00020547,2]
[375223725,1753590645643,-460.0,0.00020547,2]
[375223727,1753590645654,-554.37,0.00020547,2]
[375223729,1753590645664,-460.0,0.00020547,2]
[375223731,1753590645674,-467.44,0.00020547,2]
[375223733,1753590645684,-460.0,0.00020547,2]
[375223735,1753590645694,-612.19,0.00020547,2]
[375223737,1753590645703,-685.63,0.00020547,2]
[375223739,1753590645713,-2363.51,0.00020547,2]
[375223741,1753590645723,-2434.89,0.00020547,2]
[375223743,1753590645732,-1001.59,0.00020547,2]
[375223745,1753590645741,-460.0,0.00020547,2]
[375223747,1753590645750,-672.54,0.00020547,2]
[375223749,1753590645760,-166.16971729,0.00020547,2]
[375223751,1753590645769,-460.0,0.00020547,2]
[375223754,1753590645779,-460.0,0.00020547,2]
[375223756,1753590645787,-942.1,0.00020547,2]
[375223758,1753590645797,-1709.45,0.00020547,2]
[375223760,1753590645806,-586.49,0.00020547,2]
[375223762,1753590645815,-326.03136842,0.00020547,2]
[375223764,1753590645824,-721.82,0.00020547,2]
[375223766,1753590645833,-606.27,0.00020547,2]
[375223768,1753590645843,-441.45262864,0.00020547,2]
[375223770,1753590645858,-1655.20737136,0.00020547,2]
[375223772,1753590645870,-962.53,0.00020547,2]
[375223774,1753590645879,-522.21,0.00020547,2]
[375223776,1753590645889,-1170.19,0.00020547,2]
[375223778,1753590645898,-460.0,0.00020547,2]
[375223780,1753590645907,-633.68,0.00020547,2]
[375223782,1753590645916,-496.03,0.00020547,2]
[375223784,1753590645925,-1451.4,0.00020547,2]
[375223786,1753590645934,-485.35,0.00020547,2]
[375223788,1753590645944,-460.0,0.00020547,2]
[375223790,1753590645953,-461.31,0.00020547,2]
[375223792,1753590645962,-1490.8,0.00020547,2]
[375223794,1753590645971,-758.3,0.00020547,2]
[375223796,1753590645980,-731.53,0.00020547,2]
[375223798,1753590645990,-335.64667636,0.00020547,2]
[375223800,1753590645999,-551.27,0.00020547,2]
[375223802,1753590646008,-460.0,0.00020547,2]
[375223804,1753590646017,-460.0,0.00020547,2]
[375223806,1753590646026,-683.71,0.00020547,2]
[375223808,1753590646036,-733.24,0.00020547,2]
[375223810,1753590646045,-193.69671262,0.00020547,2]
[375223813,1753590646058,-266.30328738,0.00020547,2]
[375223815,1753590646067,-460.0,0.00020547,2]
[375223817,1753590646076,-634.01,0.00020547,2]
[375223819,1753590646085,-685.87,0.00020547,2]
[375223821,1753590646094,-3510.95,0.00020547,2]
[375223822,1753590646103,-460.0,0.00020547,2]
[375223824,1753590646113,-460.0,0.00020547,2]
[375223826,1753590646122,-460.0,0.00020547,2]
[375223828,1753590646131,-752.7,0.00020547,2]
[375223830,1753590646141,-621.07,0.00020547,2]
[375223832,1753590646150,-1141.83,0.00020547,2]
[375223834,1753590646159,-483.78,0.00020547,2]
[375223836,1753590646169,-1123.71471213,0.00020547,2]
[375223839,1753590646181,-855.43528787,0.00020547,2]
[375223841,1753590646194,-563.0,0.00020548,2]
[375223843,1753590646204,-494.0,0.00020548,2]
[375223845,1753590646213,-200.53627191,0.00020548,2]
[375223847,1753590646223,-152.9570777,0.00020548,2]
[375223849,1753590646232,-1500.0,0.00020568,2]
[375223851,1753590646241,-1000.0,0.00020568,2]
[375223853,1753590646250,-150.0,0.00020693,2]
[375223855,1753590646259,-4553.15645207,0.00020728,3]
[375223857,1753590646268,-151.0,0.000208,3]
[375223859,1753590646277,-632.38912777,0.00020816,2]
[375223861,1753590646287,-2000.0,0.00020816,2]
[375223862,1753590646296,-460.0,0.00020821,2]
[375223864,1753590646307,-1896.66774611,0.00020821,2]
[375223888,1753590646769,-460.0,0.00019178,2]
[375223890,1753590646778,-460.0,0.00019178,2]
[375223892,1753590646787,-460.0,0.00019178,2]
[375223893,1753590646797,-460.0,0.00019452,2]
[375223895,1753590646806,-460.0,0.00019726,2]
[375223897,1753590646816,-460.0,0.0002,2]
[375223899,1753590646825,-460.0,0.00020273,2]
[375223901,1753590646835,-460.0,0.00020547,2]
[375223903,1753590646844,-2070.32225389,0.00020821,2]
[375223905,1753590646855,-563.98,0.00020821,2]
[375223907,1753590646864,-460.0,0.00020821,2]
[375223909,1753590646873,-460.0,0.00020821,2]
[375223911,1753590646882,-2055.59,0.00020821,2]
[375223913,1753590646891,-460.0,0.00020821,2]
[375223915,1753590646902,-531.12,0.00020821,2]
[375223917,1753590646912,-460.0,0.00020821,2]
[375223919,1753590646921,-553.78,0.00020821,2]
[375223921,1753590646930,-460.0,0.00020821,2]
[375223923,1753590646939,-460.0,0.00020821,2]
[375223925,1753590646948,-460.0,0.00020821,2]
[375223927,1753590646957,-567.33,0.00020821,2]
[375223929,1753590646967,-813.09,0.00020821,2]
[375223931,1753590646976,-460.0,0.00020821,2]
[375223933,1753590646985,-344.86711183,0.00020821,2]
[375223945,1753590647082,-799.06,0.00020821,2]
[375223947,1753590647092,-744.59,0.00020821,2]
[375223949,1753590647102,-460.0,0.00020821,2]
[375223951,1753590647111,-460.0,0.00020821,2]
[375223953,1753590647121,-402.90047228,0.00020821,2]
[375225921,1753590776647,184.489223,0.00013699,2]
[375225924,1753590949056,160.51208887,0.00015,3]
[375225925,1753591048734,40086.22294978,0.00023,30]
[375225926,1753591148891,1201.659544,0.00017672,2]
[375225927,1753591180437,2257.41020049,0.00017674,2]
[375225928,1753591180458,6201.11048911,0.00017674,2]
[375225929,1753591235361,-1061.76422508,0.00018205,2]
[375225930,1753591235384,-160.53322143,0.00018568,2]
[375225931,1753591235406,-175.598093,0.00018576,2]
[375225932,1753591235428,-531.00085192,0.00018651,2]
[375225933,1753591235450,-593.8,0.00018668,3]
[375225934,1753591235470,-500.0,0.00018673,2]
[375225935,1753591235492,-500.0,0.00018673,2]
[375225936,1753591235512,-300.0,0.00018673,2]
[375225937,1753591235533,-300.0,0.00018673,2]
[375225938,1753591235554,-300.0,0.00018673,2]
[375225939,1753591235575,-300.0,0.00018673,2]
[375225940,1753591235596,-1200.0,0.00018673,2]
[375225941,1753591235617,-300.0,0.00018673,2]
[375225942,1753591235638,-500.0,0.00018674,2]
[375225943,1753591235658,-398.23720728,0.00018674,2]
[375225944,1753591235679,-500.0,0.00018674,2]
[375225945,1753591235699,-500.0,0.00018674,2]
[375225946,1753591235719,-299.66340978,0.00018674,2]
[375225947,1753591235740,-500.0,0.00018674,2]
[375225948,1753591235762,-500.0,0.00018674,2]
[375225949,1753591235784,-500.0,0.00018674,2]
[375225950,1753591235807,-500.0,0.00018674,2]
[375225951,1753591235828,-500.0,0.00018674,2]
[375225952,1753591235850,-500.0,0.00018674,2]
[375225953,1753591235872,-500.0,0.00018674,2]
[375225954,1753591235894,-500.0,0.00018674,2]
[375225955,1753591235915,-500.0,0.00018674,2]
[375225956,1753591235936,-500.0,0.00018674,2]
[375225957,1753591235957,-644.68644138,0.00018674,2]
[375225958,1753591235978,-500.0,0.00018674,2]
[375225959,1753591236000,-500.0,0.00018674,2]
[375225960,1753591236021,-426.31174663,0.00018674,2]
[375225961,1753591236044,-500.0,0.00018674,2]
[375225962,1753591236066,-500.0,0.00018674,2]
[375225963,1753591236086,-500.0,0.00018674,2]
[375225964,1753591236107,-438.52217053,0.00018674,2]
[375225965,1753591236127,-500.0,0.00018674,2]
[375225966,1753591236149,-642.21460303,0.00018674,2]
[375225967,1753591236170,-500.0,0.00018674,2]
[375225968,1753591236190,-312.72991906,0.00018674,2]
[375225969,1753591236214,-500.0,0.00018674,2]
[375225970,1753591236378,-500.0,0.00018674,2]
[375225971,1753591236402,-500.0,0.00018674,2]
[375225972,1753591236425,-500.0,0.00018674,2]
[375225973,1753591236447,-500.0,0.00018674,2]
[375225974,1753591236467,-500.0,0.00018674,2]
[375225975,1753591236490,-500.0,0.00018674,2]
[375225976,1753591236513,-336.92044166,0.00018674,2]
[375225977,1753591236536,-500.0,0.00018674,2]
[375225978,1753591236559,-500.0,0.00018674,2]
[375225979,1753591236581,-500.0,0.00018674,2]
[375225980,1753591236604,-500.0,0.00018674,2]
[375225981,1753591236628,-500.0,0.00018674,2]
[375225982,1753591236655,-500.0,0.00018674,2]
[375225983,1753591236681,-500.0,0.00018674,2]
[375225984,1753591236703,-440.38647494,0.00018674,2]
[375225985,1753591236727,-500.0,0.00018674,2]
[375225986,1753591236751,-500.0,0.00018674,2]
[375225987,1753591236777,-270.06474383,0.00018674,2]
[375225988,1753591236800,-500.0,0.00018674,2]
[375225989,1753591236824,-500.0,0.00018674,2]
[375225990,1753591236847,-500.0,0.00018674,2]
[375225991,1753591236869,-67.56645045,0.00018674,2]
[375225993,1753591342028,33798.88951089,0.00017756,2]
[375225994,1753591342048,40000.0,0.00017756,2]
[375225995,1753591342069,25319.04274151,0.00017756,2]
[375225996,1753591362095,14680.95725849,0.00017757,2]
[375225997,1753591362116,35427.32656241,0.00017757,2]
[375225998,1753591379652,-6368.46792504,0.00018672,2]
[375225999,1753591379678,-159.83579672,0.00018673,2]
[375226000,1753591379708,-500.0,0.00018673,2]
[375226001,1753591379758,-182.46828923,0.00018673,2]
[375226002,1753591379805,-500.0,0.00018673,2]
[375226003,1753591379849,-326.70960833,0.00018673,2]
[375226004,1753591379892,-500.0,0.00018673,2]
[375226005,1753591379921,-500.0,0.00018673,2]
[375226006,1753591379941,-500.0,0.00018673,2]
[375226007,1753591379963,-462.51838068,0.00018673,2]